fUSD/lending_fUSD_20240718
["ID","MTS","AMOUNT","RATE_DAILY","PERIOD"]
[332530979,1721288091068,-984.25,0.00026849,2]
[332530980,1721288091077,-1387.55,0.00026849,2]
[332530981,1721288091087,-925.35,0.00026849,2]
[332530982,1721288091097,-542.52,0.00026849,2]
[332530983,1721288091107,-500.0,0.00026849,2]
[332530984,1721288091116,-500.0,0.00026849,2]
[332530985,1721288091126,-538.92748396,0.00026849,2]
[332530986,1721288091135,-1699.26,0.00026849,2]
[332530987,1721288091145,-542.08,0.00026849,2]
[332530988,1721288091155,-560.08,0.00026849,2]
[332530989,1721288091164,-500.0,0.00026849,2]
[332530990,1721288091174,-534.35587288,0.00026849,2]
[332530991,1721288091184,-1355.83,0.00026849,2]
[332530992,1721288091195,-505.95,0.00026849,2]
[332530993,1721288091205,-500.0,0.00026849,2]
[332530994,1721288091215,-628.74,0.00026849,2]
[332530995,1721288091225,-538.06,0.00026849,2]
[332530996,1721288091235,-500.0,0.00026849,2]
[332530997,1721288091246,-676.4,0.00026849,2]
[332530998,1721288091256,-1065.58,0.00026849,2]
[332530999,1721288091266,-1171.41,0.00026849,2]
[332531000,1721288091276,-1408.6,0.00026849,7]
[332531001,1721288091286,-872.67,0.00026849,2]
[332531002,1721288091296,-1348.92,0.00026849,2]
[332531003,1721288091306,-838.7,0.00026849,2]
[332531004,1721288091317,-503.03,0.00026849,2]
[332531005,1721288091327,-500.0,0.00026849,2]
[332531006,1721288091337,-802.6,0.00026849,2]
[332531007,1721288091347,-780.83,0.00026849,2]
[332531008,1721288091357,-579.37,0.00026849,2]
[332531009,1721288091367,-781.35,0.00026849,2]
[332531010,1721288091376,-724.1,0.00026849,2]
[332531011,1721288091386,-500.0,0.00026849,2]
[332531012,1721288091396,-568.82,0.00026849,2]
[332531013,1721288091406,-771.73,0.00026849,2]
[332531014,1721288091546,-1353.92,0.00026849,2]
[332531015,1721288091565,-1387.82,0.00026849,2]
[332531016,1721288091575,-1287.42,0.00026849,2]
[332531017,1721288091585,-500.0,0.00026849,2]
[332531018,1721288091595,-553.81,0.00026849,2]
[332531019,1721288091605,-500.0,0.00026849,2]
[332531020,1721288091615,-911.72,0.00026849,2]
[332531021,1721288091625,-500.0,0.00026849,2]
[332531022,1721288091635,-972.31,0.00026849,2]
[332531023,1721288091644,-682.98,0.00026849,2]
[332531024,1721288091654,-1109.76,0.00026849,2]
[332531025,1721288091666,-819.38,0.00026849,2]
[332531026,1721288091677,-836.26,0.00026849,2]
[332531027,1721288091687,-568.49353941,0.00026849,2]
[332531028,1721288091696,-544.15,0.00026849,2]
[332531029,1721288091707,-500.0,0.00026849,2]
[332531030,1721288091717,-744.75,0.00026849,2]
[332531031,1721288091726,-659.68,0.00026849,2]
[332531032,1721288091736,-1074.46,0.00026849,2]
[332531033,1721288091751,-918.1,0.00026849,2]
[332531034,1721288091760,-637.37,0.00026849,2]
[332531035,1721288091770,-941.47,0.00026849,2]
[332531036,1721288091779,-808.27,0.00026849,2]
[332531037,1721288091792,-1715.0,0.00026849,2]
[332531038,1721288091802,-543.92,0.00026849,2]
[332531039,1721288091813,-500.0,0.00026849,2]
[332531040,1721288091823,-848.98,0.00026849,2]
[332531041,1721288091833,-702.02,0.00026849,2]
[332531042,1721288091843,-833.62,0.00026849,2]
[332531043,1721288091852,-747.03,0.00026849,2]
[332531044,1721288091862,-694.12,0.00026849,2]
[332531045,1721288091872,-1393.96,0.00026849,2]
[332531046,1721288091882,-923.3,0.00026849,2]
[332531047,1721288091892,-864.51,0.00026849,2]
[332531048,1721288091902,-874.63,0.00026849,2]
[332531049,1721288091912,-572.13,0.00026849,2]
[332531050,1721288091922,-577.55099119,0.00026849,2]
[332531051,1721288091932,-768.44,0.00026849,2]
[332531052,1721288091942,-919.94,0.00026849,2]
[332531053,1721288091952,-500.0,0.00026849,2]
[332531054,1721288091963,-353.92784714,0.00026849,2]
[332531055,1721288091972,-434.11470062,0.00026849,2]
[332531056,1721288091983,-567.01,0.00026849,2]
[332531057,1721288091992,-750.97,0.00026849,2]
[332531058,1721288092004,-664.81,0.00026849,2]
[332531059,1721288092014,-1439.37,0.00026849,2]
[332531060,1721288092024,-820.24,0.00026849,2]
[332531061,1721288092035,-500.0,0.00026849,2]
[332531062,1721288092045,-659.88,0.00026849,2]
[332531063,1721288092055,-675.36,0.00026849,2]
[332531064,1721288092065,-1239.37,0.00026849,2]
[332531065,1721288092075,-587.43,0.00026849,2]
[332531066,1721288092085,-570.63300603,0.00026849,2]
[332531067,1721288092095,-1037.75,0.00026849,2]
[332531068,1721288092104,-1312.95,0.00026849,2]
[332531069,1721288092114,-500.0,0.00026849,2]
[332531070,1721288092124,-759.36,0.00026849,2]
[332531071,1721288092134,-1508.18,0.00026849,2]
[332531072,1721288092143,-589.69,0.00026849,2]
[332531073,1721288092153,-589.59,0.00026849,2]
[332531074,1721288092163,-500.0,0.00026849,2]
[332531075,1721288092174,-519.36,0.00026849,2]
[332531076,1721288092183,-465.48,0.00026849,2]
[332531077,1721288092192,-500.0,0.00026849,2]
[332531078,1721288092202,-1570.3,0.00026849,2]
[332531079,1721288092212,-684.5,0.00026849,2]
[332531080,1721288092221,-778.25,0.00026849,2]
[332531081,1721288092231,-1825.46,0.00026849,2]
[332531082,1721288092241,-647.56,0.00026849,2]
[332531083,1721288092253,-1501.12,0.00026849,2]
[332531084,1721288092263,-649.76,0.00026849,2]
[332531085,1721288092273,-698.16,0.00026849,2]
[332531086,1721288092283,-500.0,0.00026849,2]
[332531087,1721288092292,-838.21,0.00026849,2]
[332531088,1721288092302,-832.49,0.00026849,2]
[332531089,1721288092312,-635.85,0.00026849,2]
[332531090,1721288092322,-1002.59,0.00026849,2]
[332531091,1721288092331,-1264.99,0.00026849,2]
[332531092,1721288092341,-558.12,0.00026849,2]
[332531093,1721288092351,-667.65,0.00026849,2]
[332531094,1721288092361,-828.72,0.00026849,2]
[332531095,1721288092371,-825.13,0.00026849,2]
[332531096,1721288092381,-935.3,0.00026849,2]
[332531097,1721288092391,-500.0,0.00026849,2]
[332531098,1721288092401,-572.09,0.00026849,2]
[332531099,1721288092411,-577.37,0.00026849,2]
[332531100,1721288092421,-801.73,0.00026849,2]
[332531101,1721288092431,-829.06,0.00026849,2]
[332531102,1721288092441,-533.21,0.00026849,2]
[332531103,1721288092450,-1500.37,0.00026849,2]
[332531104,1721288092461,-993.33,0.00026849,2]
[332531105,1721288092471,-614.68,0.00026849,2]
[332531106,1721288092481,-839.63,0.00026849,2]
[332531107,1721288092491,-1099.16,0.00026849,2]
[332531108,1721288092503,-2190.92,0.00026849,2]
[332531109,1721288092514,-769.89,0.00026849,2]
[332531110,1721288092523,-1387.79,0.00026849,2]
[332531111,1721288092533,-860.39,0.00026849,2]
[332531112,1721288092543,-916.75,0.00026849,2]
[332531113,1721288092553,-500.0,0.00026849,2]
[332531114,1721288092562,-621.09,0.00026849,2]
[332531115,1721288092573,-500.0,0.00026849,2]
[332531116,1721288092582,-2607.0,0.00026849,2]
[332531117,1721288092592,-934.95,0.00026849,2]
[332531118,1721288092601,-1185.83,0.00026849,2]
[332531119,1721288092611,-634.32,0.00026849,2]
[332531120,1721288092621,-714.68,0.00026849,2]
[332531121,1721288092630,-706.1,0.00026849,2]
[332531122,1721288092639,-992.23,0.00026849,2]
[332531123,1721288092650,-719.06,0.00026849,2]
[332531124,1721288092662,-500.0,0.00026849,2]
[332531125,1721288092672,-879.71,0.00026849,2]
[332531126,1721288092682,-962.74,0.00026849,2]
[332531127,1721288092691,-4194.17,0.00026849,2]
[332531128,1721288092702,-500.0,0.00026849,2]
[332531129,1721288092711,-500.0,0.00026849,2]
[332531130,1721288092721,-796.16,0.00026849,2]
[332531131,1721288092731,-845.59,0.00026849,2]
[332531132,1721288092744,-607.98,0.00026849,2]
[332531133,1721288092755,-1343.67,0.00026849,2]
[332531134,1721288092765,-884.87,0.00026849,2]
[332531135,1721288092774,-563.78,0.00026849,2]
[332531136,1721288092783,-664.21,0.00026849,2]
[332531137,1721288092793,-619.48,0.00026849,2]
[332531138,1721288092803,-1023.41,0.00026849,2]
[332531139,1721288092813,-4286.57,0.00026849,2]
[332531140,1721288092822,-759.2,0.00026849,2]
[332531141,1721288092832,-500.0,0.00026849,2]
[332531142,1721288092841,-664.93,0.00026849,2]
[332531143,1721288092853,-1303.0,0.00026849,2]
[332531144,1721288092862,-799.99,0.00026849,2]
[332531145,1721288092873,-779.15,0.00026849,2]
[332531146,1721288092883,-705.02,0.00026849,2]
[332531147,1721288092892,-247.04179299,0.00026849,2]
[332531148,1721288092901,-699.13,0.00026849,2]
[332531149,1721288092911,-712.43,0.00026849,2]
[332531150,1721288092920,-615.07,0.00026849,2]
[332531151,1721288092931,-640.55,0.00026849,2]
[332531152,1721288092941,-840.9,0.00026849,2]
[332531153,1721288092950,-842.93,0.00026849,2]
[332531154,1721288092960,-1213.95,0.00026849,2]
[332531155,1721288092969,-500.0,0.00026849,2]
[332531156,1721288092979,-515.65,0.00026849,2]
[332531157,1721288092988,-964.94,0.00026849,2]
[332531158,1721288092998,-592.68,0.00026849,2]
[332531159,1721288093007,-6375.98,0.00026849,2]
[332531160,1721288093017,-1379.21,0.00026849,2]
[332531161,1721288093027,-1037.41,0.00026849,2]
[332531162,1721288093037,-559.08,0.00026849,2]
[332531163,1721288093047,-1444.47,0.00026849,2]
[332531164,1721288093056,-1777.51,0.00026849,2]
[332531165,1721288093065,-1147.47,0.00026849,2]
[332531166,1721288093075,-1083.93,0.00026849,2]
[332531167,1721288093084,-815.97,0.00026849,2]
[332531168,1721288093094,-1394.22,0.00026849,2]
[332531169,1721288093103,-1149.47,0.00026849,2]
[332531170,1721288093112,-588.95,0.00026849,2]
[332531171,1721288093122,-7884.99,0.00026849,2]
[332531172,1721288093131,-1142.52,0.00026849,2]
[332531173,1721288093141,-2350.96,0.00026849,2]
[332531174,1721288093152,-751.24,0.00026849,2]
[332531175,1721288093165,-518.01,0.00026849,2]
[332531176,1721288093174,-1047.43,0.00026849,2]
[332531177,1721288093184,-9262.82,0.00026849,2]
[332531178,1721288093194,-576.17,0.00026849,2]
[332531179,1721288093204,-817.71,0.00026849,2]
[332531180,1721288093214,-567.84,0.00026849,2]
[332531181,1721288093223,-500.0,0.00026849,2]
[332531182,1721288093232,-943.1,0.00026849,2]
[332531183,1721288093242,-714.81,0.00026849,2]
[332531184,1721288093252,-559.22,0.00026849,2]
[332531185,1721288093261,-595.86,0.00026849,2]
[332531186,1721288093271,-1700.34,0.00026849,2]
[332531187,1721288093280,-671.4,0.00026849,2]
[332531188,1721288093290,-897.02,0.00026849,2]
[332531189,1721288093300,-709.03,0.00026849,2]
[332531190,1721288093309,-812.96,0.00026849,2]
[332531191,1721288093320,-763.5,0.00026849,2]
[332531192,1721288093329,-919.85,0.00026849,2]
[332531193,1721288093339,-915.85,0.00026849,2]
[332531194,1721288093348,-1583.56,0.00026849,2]
[332531195,1721288093358,-634.02,0.00026849,2]
[332531196,1721288093367,-1450.66,0.00026849,2]
[332531197,1721288093377,-708.78,0.00026849,2]
[332531198,1721288093386,-948.76,0.00026849,2]
[332531199,1721288093396,-1051.57,0.00026849,2]
[332531200,1721288093405,-2003.88,0.00026849,2]
[332531201,1721288093415,-601.06,0.00026849,2]
[332531202,1721288093425,-796.81,0.00026849,2]
[332531203,1721288093435,-1013.83,0.00026849,2]
[332531204,1721288093444,-515.65,0.00026849,2]
[332531205,1721288093454,-544.27,0.00026849,2]
[332531206,1721288093464,-503.35,0.00026849,2]
[332531207,1721288093475,-1299.19,0.00026849,2]
[332531208,1721288093485,-1547.31,0.00026849,2]
[332531209,1721288093494,-248.99577987,0.00026849,2]
[332531210,1721288093510,-612.66,0.00026849,2]
[332531211,1721288093520,-957.7,0.00026849,2]
[332531212,1721288093530,-999.04,0.00026849,2]
[332531213,1721288093541,-677.55,0.00026849,2]
[332531214,1721288093550,-549.83,0.00026849,2]
[332531215,1721288093560,-798.47,0.00026849,2]
[332531216,1721288093570,-695.01,0.00026849,2]
[332531217,1721288093579,-518.09,0.00026849,2]
[332531218,1721288093589,-1656.81,0.00026849,2]
[332531219,1721288093599,-813.28,0.00026849,2]
[332531220,1721288093608,-945.22,0.00026849,2]
[332531221,1721288093618,-947.17,0.00026849,2]
[332531222,1721288093628,-539.79,0.00026849,2]
[332531223,1721288093638,-706.37,0.00026849,2]
[332531224,1721288093647,-1135.75,0.00026849,2]
[332531225,1721288093657,-673.53,0.00026849,2]
[332531226,1721288093669,-3128.96,0.00026849,2]
[332531227,1721288093679,-669.1,0.00026849,2]
[332531228,1721288093688,-557.31,0.00026849,2]
[332531229,1721288093697,-3223.32,0.00026849,2]
[332531230,1721288093707,-842.49,0.00026849,2]
[332531231,1721288093717,-836.84,0.00026849,2]
[332531232,1721288093727,-542.57,0.00026849,2]
[332531233,1721288094094,-884.02,0.00026849,2]
[332531234,1721288094108,-1416.46,0.00026849,2]
[332531235,1721288094118,-525.77,0.00026849,2]
[332531236,1721288094127,-500.0,0.00026849,2]
[332531237,1721288094137,-808.77,0.00026849,2]
[332531238,1721288094147,-813.18,0.00026849,2]
[332531239,1721288094156,-2204.96,0.00026849,2]
[332531240,1721288094166,-888.04,0.00026849,2]
[332531241,1721288094176,-617.34,0.00026849,2]
[332531242,1721288094185,-503.15,0.00026849,2]
[332531243,1721288094196,-500.0,0.00026849,2]
[332531244,1721288094206,-550.97,0.00026849,2]
[332531245,1721288094215,-773.79,0.00026849,2]
[332531246,1721288094225,-556.49,0.00026849,2]
[332531247,1721288094235,-1258.11,0.00026849,2]
[332531248,1721288094245,-1541.61,0.00026849,2]
[332531249,1721288094257,-923.36,0.00026849,2]
[332531250,1721288094267,-1497.76,0.00026849,2]
[332531251,1721288094277,-698.16,0.00026849,2]
[332531252,1721288094286,-1777.63,0.00026849,2]
[332531253,1721288094296,-1751.66,0.00026849,2]
[332531254,1721288094307,-748.62,0.00026849,2]
[332531255,1721288094318,-1440.65,0.00026849,2]
[332531256,1721288094328,-500.0,0.00026849,2]
[332531257,1721288094338,-1459.37,0.00026849,2]
[332531258,1721288094348,-834.65,0.00026849,2]
[332531259,1721288094357,-574.9,0.00026849,2]
[332531260,1721288094367,-967.34,0.00026849,2]
[332531261,1721288094377,-600.34,0.00026849,2]
[332531262,1721288094386,-945.46,0.00026849,2]
[332531263,1721288094395,-6789.46,0.00026849,2]
[332531264,1721288094405,-500.0,0.00026849,2]
[332531265,1721288094415,-702.74,0.00026849,2]
[332531266,1721288094424,-1649.03,0.00026849,2]
[332531267,1721288094434,-1351.16,0.00026849,2]
[332531268,1721288094443,-846.83,0.00026849,2]
[332531269,1721288094453,-3838.48,0.00026849,2]
[332531270,1721288094462,-727.83,0.00026849,2]
[332531271,1721288094473,-1099.8,0.00026849,2]
[332531272,1721288094483,-592.88,0.00026849,2]
[332531273,1721288094492,-1314.69,0.00026849,2]
[332531274,1721288094504,-660.25,0.00026849,2]
[332531275,1721288094514,-1225.2,0.00026849,2]
[332531276,1721288094524,-690.8,0.00026849,2]
[332531277,1721288094534,-758.27,0.00026849,2]
[332531278,1721288094544,-815.9,0.00026849,2]
[332531279,1721288094554,-1445.6,0.00026849,2]
[332531280,1721288094563,-1211.24,0.00026849,2]
[332531281,1721288094573,-764.9,0.00026849,2]
[332531282,1721288094583,-1017.79,0.00026849,2]
[332531283,1721288094593,-819.77,0.00026849,2]
[332531284,1721288094604,-843.65,0.00026849,2]
[332531285,1721288094614,-508.09,0.00026849,2]
[332531286,1721288094623,-1121.8,0.00026849,2]
[332531287,1721288094633,-4510.49,0.00026849,2]
[332531288,1721288094643,-548.62,0.00026849,2]
[332531289,1721288094652,-732.51,0.00026849,2]
[332531290,1721288094663,-500.0,0.00026849,2]
[332531291,1721288094677,-727.51,0.00026849,2]
[332531292,1721288094687,-699.69,0.00026849,2]
[332531293,1721288094697,-780.84,0.00026849,2]
[332531294,1721288094707,-615.98,0.00026849,2]
[332531295,1721288094717,-985.19,0.00026849,2]
[332531296,1721288094726,-2219.16,0.00026849,2]
[332531297,1721288094736,-661.47,0.00026849,2]
[332531298,1721288094746,-2008.64,0.00026849,2]
[332531299,1721288094761,-707.34,0.00026849,2]
[332531300,1721288094770,-776.84,0.00026849,2]
[332531301,1721288094780,-2197.33,0.00026849,2]
[332531302,1721288094790,-813.45,0.00026849,2]
[332531303,1721288094802,-6067.08,0.00026849,2]
[332531304,1721288094812,-1222.6,0.00026849,2]
[332531305,1721288094821,-685.95,0.00026849,2]
[332531306,1721288094831,-885.84,0.00026849,2]
[332531307,1721288094840,-500.0,0.00026849,2]
[332531308,1721288094850,-589.04,0.00026849,2]
[332531309,1721288094859,-703.44,0.00026849,2]
[332531310,1721288094869,-919.77,0.00026849,2]
[332531311,1721288094879,-699.95,0.00026849,2]
[332531312,1721288094888,-2956.08,0.00026849,2]
[332531313,1721288094898,-500.0,0.00026849,2]
[332531314,1721288094908,-758.73,0.00026849,2]
[332531315,1721288094917,-1023.99,0.00026849,2]
[332531316,1721288094927,-893.45,0.00026849,2]
[332531317,1721288094936,-500.0,0.00026849,2]
[332531318,1721288094946,-1159.85,0.00026849,2]
[332531319,1721288094956,-799.42,0.00026849,2]
[332531320,1721288094966,-2000.0,0.000269,2]
[332531321,1721288094976,-1005.0,0.00026912,2]
[332531322,1721288094985,-475.32720007,0.00026933,2]
[332531323,1721288094995,-219.93185005,0.00027,2]
[332531324,1721288095007,-11082.09833347,0.00027,2]
[332531325,1721288095017,-400.82,0.00027,10]
[332531326,1721288095026,-136793.55503672,0.00027,7]
[332531327,1721288095035,-569.80107327,0.00027,2]
[332531328,1721288095045,-2000.0,0.00027,2]
[332531329,1721288095055,-77778.73530061,0.00027,7]
[332531330,1721288095064,-3100.940972,0.0002701,2]
[332531331,1721288095074,-151.0,0.00027068,2]
[332531332,1721288095084,-954.82,0.00027103,7]
[332531333,1721288095093,-954.82,0.00027103,7]
[332531334,1721288095103,-1000.0,0.00027105,2]
[332531335,1721288095112,-150.0,0.00027109,2]
[332531336,1721288095122,-1548.92,0.00027123,2]
[332531337,1721288095132,-903.45,0.00027123,2]
[332531338,1721288095142,-873.73,0.00027123,2]
[332531339,1721288095152,-1146.78,0.00027123,2]
[332531340,1721288095162,-755.65,0.00027123,2]
[332531341,1721288095172,-1117.53,0.00027123,2]
[332531342,1721288095181,-1014.34,0.00027123,2]
[332531343,1721288095192,-500.0,0.00027123,2]
[332531344,1721288095202,-926.9,0.00027123,2]
[332531345,1721288095212,-559.52,0.00027123,2]
[332531346,1721288095222,-1202.57,0.00027123,2]
[332531347,1721288095232,-500.0,0.00027123,2]
[332531348,1721288095242,-686.6,0.00027123,2]
[332531349,1721288095258,-698.02,0.00027123,2]
[332531350,1721288095268,-500.0,0.00027123,2]
[332531351,1721288095277,-568.02,0.00027123,2]
[332531352,1721288095287,-500.0,0.00027123,2]
[332531353,1721288095297,-506.5,0.00027123,2]
[332531354,1721288095307,-579.89,0.00027123,2]
[332531355,1721288095316,-888.04,0.00027123,2]
[332531356,1721288095326,-877.77,0.00027123,2]
[332531357,1721288095335,-299.68,0.00027123,2]
[332531358,1721288095344,-500.0,0.00027123,2]
[332531359,1721288095354,-689.95,0.00027123,2]
[332531360,1721288095363,-887.13,0.00027123,2]
[332531361,1721288095373,-512.75,0.00027123,2]
[332531362,1721288095382,-500.0,0.00027123,2]
[332531363,1721288095392,-918.48,0.00027123,2]
[332531364,1721288095402,-1130.16,0.00027123,2]
[332531365,1721288095412,-500.0,0.00027123,2]
[332531366,1721288095421,-500.0,0.00027123,2]
[332531367,1721288095431,-1018.39,0.00027123,2]
[332531368,1721288095440,-500.0,0.00027123,2]
[332531369,1721288095450,-582.9,0.00027123,2]
[332531370,1721288095459,-629.0,0.00027123,2]
[332531371,1721288095469,-682.95,0.00027123,2]
[332531372,1721288095478,-1036.97,0.00027123,2]
[332531373,1721288095488,-688.35,0.00027123,2]
[332531374,1721288095500,-851.26,0.00027123,2]
[332531375,1721288095510,-500.0,0.00027123,2]
[332531376,1721288095520,-1046.3,0.00027123,2]
[332531377,1721288095529,-500.0,0.00027123,2]
[332531378,1721288095539,-988.22,0.00027123,2]
[332531379,1721288095548,-370.87878014,0.00027123,2]
[332531380,1721288095558,-500.0,0.00027123,2]
[332531381,1721288095567,-864.94,0.00027123,2]
[332531382,1721288095577,-704.02,0.00027123,2]
[332531383,1721288095587,-791.51,0.00027123,2]
[332531384,1721288095596,-637.96,0.00027123,2]
[332531385,1721288095606,-645.57,0.00027123,2]
[332531386,1721288095615,-632.83,0.00027123,2]
[332531387,1721288095624,-654.28,0.00027123,2]
[332531388,1721288095633,-616.18,0.00027123,2]
[332531389,1721288095643,-673.07,0.00027123,2]
[332531390,1721288095653,-530.94,0.00027123,2]
[332531391,1721288095668,-527.98,0.00027123,2]
[332531392,1721288095678,-547.08,0.00027123,2]
[332531393,1721288095687,-559.75,0.00027123,2]
[332531394,1721288095697,-611.76,0.00027123,2]
[332531395,1721288095708,-1173.23,0.00027123,2]
[332531396,1721288095717,-709.13,0.00027123,2]
[332531397,1721288095727,-753.22,0.00027123,2]
[332531398,1721288095737,-571.73,0.00027123,2]
[332531399,1721288095747,-679.34,0.00027123,2]
[332531400,1721288095759,-393.7,0.00027123,2]
[332531401,1721288095769,-771.42,0.00027123,2]
[332531402,1721288095778,-500.0,0.00027123,2]
[332531403,1721288095788,-1055.96,0.00027123,2]
[332531404,1721288095798,-500.0,0.00027123,2]
[332531405,1721288095807,-703.28,0.00027123,2]
[332531406,1721288095817,-750.7,0.00027123,2]
[332531407,1721288095827,-756.04,0.00027123,2]
[332531408,1721288095837,-500.0,0.00027123,2]
[332531409,1721288095847,-1168.54,0.00027123,2]
[332531410,1721288095856,-1538.77,0.00027123,2]
[332531411,1721288095866,-1229.0,0.00027123,2]
[332531412,1721288095875,-926.42,0.00027123,2]
[332531413,1721288095885,-1335.62,0.00027123,2]
[332531414,1721288095895,-984.25,0.00027123,2]
[332531415,1721288095904,-1387.55,0.00027123,2]
[332531416,1721288095913,-925.35,0.00027123,2]
[332531417,1721288095923,-542.52,0.00027123,2]
[332531418,1721288095932,-500.0,0.00027123,2]
[332531419,1721288095942,-218.46867996,0.00027123,2]
[332531420,1721288095952,-1699.26,0.00027123,2]
[332531421,1721288095962,-542.08,0.00027123,2]
[332531422,1721288095971,-560.08,0.00027123,2]
[332531423,1721288095980,-500.0,0.00027123,2]
[332531424,1721288095990,-1355.83,0.00027123,2]
[332531425,1721288096001,-505.95,0.00027123,2]
[332531426,1721288096011,-628.74,0.00027123,2]
[332531427,1721288096020,-500.0,0.00027123,2]
[332531428,1721288096029,-538.06,0.00027123,2]
[332531429,1721288096038,-649.97130658,0.00027123,2]
[332531430,1721288096048,-676.4,0.00027123,2]
[332531431,1721288096058,-1065.58,0.00027123,2]
[332531432,1721288096067,-1171.41,0.00027123,2]
[332531433,1721288096077,-1408.6,0.00027123,7]
[332531434,1721288096087,-872.67,0.00027123,2]
[332531435,1721288096097,-1348.92,0.00027123,2]
[332531436,1721288096107,-838.7,0.00027123,2]
[332531437,1721288096116,-503.03,0.00027123,2]
[332531438,1721288096126,-500.0,0.00027123,2]
[332531439,1721288096135,-802.6,0.00027123,2]
[332531440,1721288096145,-780.83,0.00027123,2]
[332531441,1721288096154,-579.37,0.00027123,2]
[332531442,1721288096163,-781.35,0.00027123,2]
[332531443,1721288096173,-724.1,0.00027123,2]
[332531444,1721288096183,-152.52239695,0.00027123,2]
[332531445,1721288096193,-568.82,0.00027123,2]
[332531446,1721288096203,-771.73,0.00027123,2]
[332531447,1721288096212,-1353.92,0.00027123,2]
[332531448,1721288096221,-1387.82,0.00027123,2]
[332531449,1721288096231,-1287.42,0.00027123,2]
[332531450,1721288096240,-153.88419056,0.00027123,2]
[332531451,1721288096251,-553.81,0.00027123,2]
[332531452,1721288096261,-500.0,0.00027123,2]
[332531453,1721288096270,-911.72,0.00027123,2]
[332531454,1721288096279,-578.48968034,0.00027123,2]
[332531455,1721288096288,-972.31,0.00027123,2]
[332531456,1721288096297,-682.98,0.00027123,2]
[332531457,1721288096306,-1109.76,0.00027123,2]
[332531458,1721288096315,-819.38,0.00027123,2]
[332531459,1721288096325,-836.26,0.00027123,2]
[332531460,1721288096334,-544.15,0.00027123,2]
[332531461,1721288096343,-500.0,0.00027123,2]
[332531462,1721288096353,-744.75,0.00027123,2]
[332531463,1721288096362,-659.68,0.00027123,2]
[332531464,1721288096372,-1074.46,0.00027123,2]
[332531465,1721288096382,-918.1,0.00027123,2]
[332531466,1721288096390,-637.37,0.00027123,2]
[332531467,1721288096400,-941.47,0.00027123,2]
[332531468,1721288096410,-808.27,0.00027123,2]
[332531469,1721288096419,-1715.0,0.00027123,2]
[332531470,1721288096429,-543.92,0.00027123,2]
[332531471,1721288096439,-500.0,0.00027123,2]
[332531472,1721288096448,-848.98,0.00027123,2]
[332531473,1721288096457,-702.02,0.00027123,2]
[332531474,1721288096466,-833.62,0.00027123,2]
[332531475,1721288096616,-747.03,0.00027123,2]
[332531476,1721288096625,-694.12,0.00027123,2]
[332531477,1721288096635,-1393.96,0.00027123,2]
[332531478,1721288096644,-923.3,0.00027123,2]